{"text_format":"1","workbook":"xlsx","n_sheets":3,"sheets":["Feuil1","Feuil2","Liste des collectivités"],"not_rendered":{"charts":0,"images":0,"macros":0,"external_links":0,"defined_names":4,"comments":0,"pivot_tables":0},"unopened":[],"bounds":{"document_bytes":16777216,"sheet_cells":100000,"rows_first":2000,"rows_last":500,"rows_between":2000,"halvings":0,"cell_chars":16384,"cell_head_chars":4096},"cells_cut":0,"cells_raw":0,"read":"whole","date_system":"1900"}

{"sheet":"Feuil1","index":0,"n_rows":555,"n_cols":23,"rows_kept":555,"cut":false,"hidden":false,"merged":[[0,0,0,14]]}
["Merci de ne pas insérer de caractères spéciaux (virgule, apostrophe, guillemets, parenthèses…)"]
["Nom de la collectivité ou de l'établissement              (à sélectionner dans la liste déroulante)","Civilité","Prénom","Nom d'usage","Adresse 1","Adresse 2","Adresse 3","Adresse 4","Code postal","Ville","Pays","Date de naissance (JJ/MM/AAAA)","Département de naissance (n°) exemple : 17","Code défi : Année et département de naissance (AAAADD ou AAAADDD pour les DROM ou AAAA99 pour les agents nés à l'étranger) ","Statut : titulaire / stagiaire / contractuel","Catégorie","CAP","CCP","CST du CDG17",null,null,"OUI","NON"]
[null,null,null,null,null,null,null,null,null,null,null,null,null,{"$f":"IF(OR(L3=\"\",M3=\"\"),\"\",YEAR(L3)&M3)","v":""}]
[null,null,null,null,null,null,null,null,null,null,null,null,null,{"$f":"IF(OR(L4=\"\",M4=\"\"),\"\",YEAR(L4)&M4)","v":""}]
[null,null,null,null,null,null,null,null,null,null,null,null,null,""]
[null,null,null,null,null,null,null,null,null,null,null,null,null,""]
[null,null,null,null,null,null,null,null,null,null,null,null,null,{"$f":"IF(OR(L7=\"\",M7=\"\"),\"\",YEAR(L7)&M7)","v":""}]
[null,null,null,null,null,null,null,null,null,null,null,null,null,""]
[null,null,null,null,null,null,null,null,null,null,null,null,null,""]
[null,null,null,null,null,null,null,null,null,null,null,null,null,""]
[null,null,null,null,null,null,null,null,null,null,null,null,null,""]
[null,null,null,null,null,null,null,null,null,null,null,null,null,""]
[null,null,null,null,null,null,null,null,null,null,null,null,null,""]
[null,null,null,null,null,null,null,null,null,null,null,null,null,""]
[null,null,null,null,null,null,null,null,null,null,null,null,null,""]
[null,null,null,null,null,null,null,null,null,null,null,null,null,""]
[null,null,null,null,null,null,null,null,null,null,null,null,null,""]
[null,null,null,null,null,null,null,null,null,null,null,null,null,""]
[null,null,null,null,null,null,null,null,null,null,null,null,null,""]
[null,null,null,null,null,null,null,null,null,null,null,null,null,""]
[null,null,null,null,null,null,null,null,null,null,null,null,null,""]
[null,null,null,null,null,null,null,null,null,null,null,null,null,""]
[null,null,null,null,null,null,null,null,null,null,null,null,null,""]
[null,null,null,null,null,null,null,null,null,null,null,null,null,""]
[null,null,null,null,null,null,null,null,null,null,null,null,null,""]
[null,null,null,null,null,null,null,null,null,null,null,null,null,""]
[null,null,null,null,null,null,null,null,null,null,null,null,null,""]
[null,null,null,null,null,null,null,null,null,null,null,null,null,""]
[null,null,null,null,null,null,null,null,null,null,null,null,null,""]
[null,null,null,null,null,null,null,null,null,null,null,null,null,""]
[null,null,null,null,null,null,null,null,null,null,null,null,null,""]
[null,null,null,null,null,null,null,null,null,null,null,null,null,""]
[null,null,null,null,null,null,null,null,null,null,null,null,null,""]
[null,null,null,null,null,null,null,null,null,null,null,null,null,""]
[null,null,null,null,null,null,null,null,null,null,null,null,null,""]
[null,null,null,null,null,null,null,null,null,null,null,null,null,""]
[null,null,null,null,null,null,null,null,null,null,null,null,null,""]
[null,null,null,null,null,null,null,null,null,null,null,null,null,""]
[null,null,null,null,null,null,null,null,null,null,null,null,null,""]
[null,null,null,null,null,null,null,null,null,null,null,null,null,""]
[null,null,null,null,null,null,null,null,null,null,null,null,null,""]
[null,null,null,null,null,null,null,null,null,null,null,null,null,""]
[null,null,null,null,null,null,null,null,null,null,null,null,null,""]
[null,null,null,null,null,null,null,null,null,null,null,null,null,""]
[null,null,null,null,null,null,null,null,null,null,null,null,null,""]
[null,null,null,null,null,null,null,null,null,null,null,null,null,""]
[null,null,null,null,null,null,null,null,null,null,null,null,null,""]
[null,null,null,null,null,null,null,null,null,null,null,null,null,""]
[null,null,null,null,null,null,null,null,null,null,null,null,null,""]
[null,null,null,null,null,null,null,null,null,null,null,null,null,""]
[null,null,null,null,null,null,null,null,null,null,null,null,null,""]
[null,null,null,null,null,null,null,null,null,null,null,null,null,""]
[null,null,null,null,null,null,null,null,null,null,null,null,null,""]
[null,null,null,null,null,null,null,null,null,null,null,null,null,""]
[null,null,null,null,null,null,null,null,null,null,null,null,null,""]
[null,null,null,null,null,null,null,null,null,null,null,null,null,""]
[null,null,null,null,null,null,null,null,null,null,null,null,null,""]
[null,null,null,null,null,null,null,null,null,null,null,null,null,""]
[null,null,null,null,null,null,null,null,null,null,null,null,null,""]
[null,null,null,null,null,null,null,null,null,null,null,null,null,""]
[null,null,null,null,null,null,null,null,null,null,null,null,null,""]
[null,null,null,null,null,null,null,null,null,null,null,null,null,""]
[null,null,null,null,null,null,null,null,null,null,null,null,null,""]
[null,null,null,null,null,null,null,null,null,null,null,null,null,""]
[null,null,null,null,null,null,null,null,null,null,null,null,null,""]
[null,null,null,null,null,null,null,null,null,null,null,null,null,""]
[null,null,null,null,null,null,null,null,null,null,null,null,null,""]
[null,null,null,null,null,null,null,null,null,null,null,null,null,""]
[null,null,null,null,null,null,null,null,null,null,null,null,null,{"$f":"IF(OR(L69=\"\",M69=\"\"),\"\",YEAR(L69)&M69)","v":""}]
[null,null,null,null,null,null,null,null,null,null,null,null,null,""]
[null,null,null,null,null,null,null,null,null,null,null,null,null,""]
[null,null,null,null,null,null,null,null,null,null,null,null,null,""]
[null,null,null,null,null,null,null,null,null,null,null,null,null,""]
[null,null,null,null,null,null,null,null,null,null,null,null,null,""]
[null,null,null,null,null,null,null,null,null,null,null,null,null,""]
[null,null,null,null,null,null,null,null,null,null,null,null,null,""]
[null,null,null,null,null,null,null,null,null,null,null,null,null,""]
[null,null,null,null,null,null,null,null,null,null,null,null,null,""]
[null,null,null,null,null,null,null,null,null,null,null,null,null,""]
[null,null,null,null,null,null,null,null,null,null,null,null,null,""]
[null,null,null,null,null,null,null,null,null,null,null,null,null,""]
[null,null,null,null,null,null,null,null,null,null,null,null,null,""]
[null,null,null,null,null,null,null,null,null,null,null,null,null,""]
[null,null,null,null,null,null,null,null,null,null,null,null,null,""]
[null,null,null,null,null,null,null,null,null,null,null,null,null,""]
[null,null,null,null,null,null,null,null,null,null,null,null,null,""]
[null,null,null,null,null,null,null,null,null,null,null,null,null,""]
[null,null,null,null,null,null,null,null,null,null,null,null,null,""]
[null,null,null,null,null,null,null,null,null,null,null,null,null,""]
[null,null,null,null,null,null,null,null,null,null,null,null,null,""]
[null,null,null,null,null,null,null,null,null,null,null,null,null,""]
[null,null,null,null,null,null,null,null,null,null,null,null,null,""]
[null,null,null,null,null,null,null,null,null,null,null,null,null,""]
[null,null,null,null,null,null,null,null,null,null,null,null,null,""]
[null,null,null,null,null,null,null,null,null,null,null,null,null,""]
[null,null,null,null,null,null,null,null,null,null,null,null,null,""]
[null,null,null,null,null,null,null,null,null,null,null,null,null,""]
[null,null,null,null,null,null,null,null,null,null,null,null,null,""]
[null,null,null,null,null,null,null,null,null,null,null,null,null,""]
[null,null,null,null,null,null,null,null,null,null,null,null,null,""]
[null,null,null,null,null,null,null,null,null,null,null,null,null,""]
[null,null,null,null,null,null,null,null,null,null,null,null,null,""]
[null,null,null,null,null,null,null,null,null,null,null,null,null,""]
[null,null,null,null,null,null,null,null,null,null,null,null,null,""]
[null,null,null,null,null,null,null,null,null,null,null,null,null,""]
[null,null,null,null,null,null,null,null,null,null,null,null,null,""]
[null,null,null,null,null,null,null,null,null,null,null,null,null,""]
[null,null,null,null,null,null,null,null,null,null,null,null,null,""]
[null,null,null,null,null,null,null,null,null,null,null,null,null,""]
[null,null,null,null,null,null,null,null,null,null,null,null,null,""]
[null,null,null,null,null,null,null,null,null,null,null,null,null,""]
[null,null,null,null,null,null,null,null,null,null,null,null,null,""]
[null,null,null,null,null,null,null,null,null,null,null,null,null,""]
[null,null,null,null,null,null,null,null,null,null,null,null,null,""]
[null,null,null,null,null,null,null,null,null,null,null,null,null,""]
[null,null,null,null,null,null,null,null,null,null,null,null,null,""]
[null,null,null,null,null,null,null,null,null,null,null,null,null,""]
[null,null,null,null,null,null,null,null,null,null,null,null,null,""]
[null,null,null,null,null,null,null,null,null,null,null,null,null,""]
[null,null,null,null,null,null,null,null,null,null,null,null,null,""]
[null,null,null,null,null,null,null,null,null,null,null,null,null,""]
[null,null,null,null,null,null,null,null,null,null,null,null,null,""]
[null,null,null,null,null,null,null,null,null,null,null,null,null,""]
[null,null,null,null,null,null,null,null,null,null,null,null,null,""]
[null,null,null,null,null,null,null,null,null,null,null,null,null,""]
[null,null,null,null,null,null,null,null,null,null,null,null,null,""]
[null,null,null,null,null,null,null,null,null,null,null,null,null,""]
[null,null,null,null,null,null,null,null,null,null,null,null,null,""]
[null,null,null,null,null,null,null,null,null,null,null,null,null,""]
[null,null,null,null,null,null,null,null,null,null,null,null,null,""]
[null,null,null,null,null,null,null,null,null,null,null,null,null,""]
[null,null,null,null,null,null,null,null,null,null,null,null,null,""]
[null,null,null,null,null,null,null,null,null,null,null,null,null,{"$f":"IF(OR(L133=\"\",M133=\"\"),\"\",YEAR(L133)&M133)","v":""}]
[null,null,null,null,null,null,null,null,null,null,null,null,null,""]
[null,null,null,null,null,null,null,null,null,null,null,null,null,""]
[null,null,null,null,null,null,null,null,null,null,null,null,null,""]
[null,null,null,null,null,null,null,null,null,null,null,null,null,""]
[null,null,null,null,null,null,null,null,null,null,null,null,null,""]
[null,null,null,null,null,null,null,null,null,null,null,null,null,""]
[null,null,null,null,null,null,null,null,null,null,null,null,null,""]
[null,null,null,null,null,null,null,null,null,null,null,null,null,""]
[null,null,null,null,null,null,null,null,null,null,null,null,null,""]
[null,null,null,null,null,null,null,null,null,null,null,null,null,""]
[null,null,null,null,null,null,null,null,null,null,null,null,null,""]
[null,null,null,null,null,null,null,null,null,null,null,null,null,""]
[null,null,null,null,null,null,null,null,null,null,null,null,null,""]
[null,null,null,null,null,null,null,null,null,null,null,null,null,""]
[null,null,null,null,null,null,null,null,null,null,null,null,null,""]
[null,null,null,null,null,null,null,null,null,null,null,null,null,""]
[null,null,null,null,null,null,null,null,null,null,null,null,null,""]
[null,null,null,null,null,null,null,null,null,null,null,null,null,""]
[null,null,null,null,null,null,null,null,null,null,null,null,null,""]
[null,null,null,null,null,null,null,null,null,null,null,null,null,""]
[null,null,null,null,null,null,null,null,null,null,null,null,null,""]
[null,null,null,null,null,null,null,null,null,null,null,null,null,""]
[null,null,null,null,null,null,null,null,null,null,null,null,null,""]
[null,null,null,null,null,null,null,null,null,null,null,null,null,""]
[null,null,null,null,null,null,null,null,null,null,null,null,null,""]
[null,null,null,null,null,null,null,null,null,null,null,null,null,""]
[null,null,null,null,null,null,null,null,null,null,null,null,null,""]
[null,null,null,null,null,null,null,null,null,null,null,null,null,""]
[null,null,null,null,null,null,null,null,null,null,null,null,null,""]
[null,null,null,null,null,null,null,null,null,null,null,null,null,""]
[null,null,null,null,null,null,null,null,null,null,null,null,null,""]
[null,null,null,null,null,null,null,null,null,null,null,null,null,""]
[null,null,null,null,null,null,null,null,null,null,null,null,null,""]
[null,null,null,null,null,null,null,null,null,null,null,null,null,""]
[null,null,null,null,null,null,null,null,null,null,null,null,null,""]
[null,null,null,null,null,null,null,null,null,null,null,null,null,""]
[null,null,null,null,null,null,null,null,null,null,null,null,null,""]
[null,null,null,null,null,null,null,null,null,null,null,null,null,""]
[null,null,null,null,null,null,null,null,null,null,null,null,null,""]
[null,null,null,null,null,null,null,null,null,null,null,null,null,""]
[null,null,null,null,null,null,null,null,null,null,null,null,null,""]
[null,null,null,null,null,null,null,null,null,null,null,null,null,""]
[null,null,null,null,null,null,null,null,null,null,null,null,null,""]
[null,null,null,null,null,null,null,null,null,null,null,null,null,""]
[null,null,null,null,null,null,null,null,null,null,null,null,null,""]
[null,null,null,null,null,null,null,null,null,null,null,null,null,""]
[null,null,null,null,null,null,null,null,null,null,null,null,null,""]
[null,null,null,null,null,null,null,null,null,null,null,null,null,""]
[null,null,null,null,null,null,null,null,null,null,null,null,null,""]
[null,null,null,null,null,null,null,null,null,null,null,null,null,""]
[null,null,null,null,null,null,null,null,null,null,null,null,null,""]
[null,null,null,null,null,null,null,null,null,null,null,null,null,""]
[null,null,null,null,null,null,null,null,null,null,null,null,null,""]
[null,null,null,null,null,null,null,null,null,null,null,null,null,""]
[null,null,null,null,null,null,null,null,null,null,null,null,null,""]
[null,null,null,null,null,null,null,null,null,null,null,null,null,""]
[null,null,null,null,null,null,null,null,null,null,null,null,null,""]
[null,null,null,null,null,null,null,null,null,null,null,null,null,""]
[null,null,null,null,null,null,null,null,null,null,null,null,null,""]
[null,null,null,null,null,null,null,null,null,null,null,null,null,""]
[null,null,null,null,null,null,null,null,null,null,null,null,null,""]
[null,null,null,null,null,null,null,null,null,null,null,null,null,""]
[null,null,null,null,null,null,null,null,null,null,null,null,null,""]
[null,null,null,null,null,null,null,null,null,null,null,null,null,{"$f":"IF(OR(L197=\"\",M197=\"\"),\"\",YEAR(L197)&M197)","v":""}]
[null,null,null,null,null,null,null,null,null,null,null,null,null,""]
[null,null,null,null,null,null,null,null,null,null,null,null,null,""]
[null,null,null,null,null,null,null,null,null,null,null,null,null,""]
[null,null,null,null,null,null,null,null,null,null,null,null,null,""]
[null,null,null,null,null,null,null,null,null,null,null,null,null,""]
[null,null,null,null,null,null,null,null,null,null,null,null,null,""]
[null,null,null,null,null,null,null,null,null,null,null,null,null,""]
[null,null,null,null,null,null,null,null,null,null,null,null,null,""]
[null,null,null,null,null,null,null,null,null,null,null,null,null,""]
[null,null,null,null,null,null,null,null,null,null,null,null,null,""]
[null,null,null,null,null,null,null,null,null,null,null,null,null,""]
[null,null,null,null,null,null,null,null,null,null,null,null,null,""]
[null,null,null,null,null,null,null,null,null,null,null,null,null,""]
[null,null,null,null,null,null,null,null,null,null,null,null,null,""]
[null,null,null,null,null,null,null,null,null,null,null,null,null,""]
[null,null,null,null,null,null,null,null,null,null,null,null,null,""]
[null,null,null,null,null,null,null,null,null,null,null,null,null,""]
[null,null,null,null,null,null,null,null,null,null,null,null,null,""]
[null,null,null,null,null,null,null,null,null,null,null,null,null,""]
[null,null,null,null,null,null,null,null,null,null,null,null,null,""]
[null,null,null,null,null,null,null,null,null,null,null,null,null,""]
[null,null,null,null,null,null,null,null,null,null,null,null,null,""]
[null,null,null,null,null,null,null,null,null,null,null,null,null,""]
[null,null,null,null,null,null,null,null,null,null,null,null,null,""]
[null,null,null,null,null,null,null,null,null,null,null,null,null,""]
[null,null,null,null,null,null,null,null,null,null,null,null,null,""]
[null,null,null,null,null,null,null,null,null,null,null,null,null,""]
[null,null,null,null,null,null,null,null,null,null,null,null,null,""]
[null,null,null,null,null,null,null,null,null,null,null,null,null,""]
[null,null,null,null,null,null,null,null,null,null,null,null,null,""]
[null,null,null,null,null,null,null,null,null,null,null,null,null,""]
[null,null,null,null,null,null,null,null,null,null,null,null,null,""]
[null,null,null,null,null,null,null,null,null,null,null,null,null,""]
[null,null,null,null,null,null,null,null,null,null,null,null,null,""]
[null,null,null,null,null,null,null,null,null,null,null,null,null,""]
[null,null,null,null,null,null,null,null,null,null,null,null,null,""]
[null,null,null,null,null,null,null,null,null,null,null,null,null,""]
[null,null,null,null,null,null,null,null,null,null,null,null,null,""]
[null,null,null,null,null,null,null,null,null,null,null,null,null,""]
[null,null,null,null,null,null,null,null,null,null,null,null,null,""]
[null,null,null,null,null,null,null,null,null,null,null,null,null,""]
[null,null,null,null,null,null,null,null,null,null,null,null,null,""]
[null,null,null,null,null,null,null,null,null,null,null,null,null,""]
[null,null,null,null,null,null,null,null,null,null,null,null,null,""]
[null,null,null,null,null,null,null,null,null,null,null,null,null,""]
[null,null,null,null,null,null,null,null,null,null,null,null,null,""]
[null,null,null,null,null,null,null,null,null,null,null,null,null,""]
[null,null,null,null,null,null,null,null,null,null,null,null,null,""]
[null,null,null,null,null,null,null,null,null,null,null,null,null,""]
[null,null,null,null,null,null,null,null,null,null,null,null,null,""]
[null,null,null,null,null,null,null,null,null,null,null,null,null,""]
[null,null,null,null,null,null,null,null,null,null,null,null,null,""]
[null,null,null,null,null,null,null,null,null,null,null,null,null,""]
[null,null,null,null,null,null,null,null,null,null,null,null,null,""]
[null,null,null,null,null,null,null,null,null,null,null,null,null,""]
[null,null,null,null,null,null,null,null,null,null,null,null,null,""]
[null,null,null,null,null,null,null,null,null,null,null,null,null,""]
[null,null,null,null,null,null,null,null,null,null,null,null,null,""]
[null,null,null,null,null,null,null,null,null,null,null,null,null,""]
[null,null,null,null,null,null,null,null,null,null,null,null,null,""]
[null,null,null,null,null,null,null,null,null,null,null,null,null,""]
[null,null,null,null,null,null,null,null,null,null,null,null,null,""]
[null,null,null,null,null,null,null,null,null,null,null,null,null,""]
[null,null,null,null,null,null,null,null,null,null,null,null,null,{"$f":"IF(OR(L261=\"\",M261=\"\"),\"\",YEAR(L261)&M261)","v":""}]
[null,null,null,null,null,null,null,null,null,null,null,null,null,""]
[null,null,null,null,null,null,null,null,null,null,null,null,null,""]
[null,null,null,null,null,null,null,null,null,null,null,null,null,""]
[null,null,null,null,null,null,null,null,null,null,null,null,null,""]
[null,null,null,null,null,null,null,null,null,null,null,null,null,""]
[null,null,null,null,null,null,null,null,null,null,null,null,null,""]
[null,null,null,null,null,null,null,null,null,null,null,null,null,""]
[null,null,null,null,null,null,null,null,null,null,null,null,null,""]
[null,null,null,null,null,null,null,null,null,null,null,null,null,""]
[null,null,null,null,null,null,null,null,null,null,null,null,null,""]
[null,null,null,null,null,null,null,null,null,null,null,null,null,""]
[null,null,null,null,null,null,null,null,null,null,null,null,null,""]
[null,null,null,null,null,null,null,null,null,null,null,null,null,""]
[null,null,null,null,null,null,null,null,null,null,null,null,null,""]
[null,null,null,null,null,null,null,null,null,null,null,null,null,""]
[null,null,null,null,null,null,null,null,null,null,null,null,null,""]
[null,null,null,null,null,null,null,null,null,null,null,null,null,""]
[null,null,null,null,null,null,null,null,null,null,null,null,null,""]
[null,null,null,null,null,null,null,null,null,null,null,null,null,""]
[null,null,null,null,null,null,null,null,null,null,null,null,null,""]
[null,null,null,null,null,null,null,null,null,null,null,null,null,""]
[null,null,null,null,null,null,null,null,null,null,null,null,null,""]
[null,null,null,null,null,null,null,null,null,null,null,null,null,""]
[null,null,null,null,null,null,null,null,null,null,null,null,null,""]
[null,null,null,null,null,null,null,null,null,null,null,null,null,""]
[null,null,null,null,null,null,null,null,null,null,null,null,null,""]
[null,null,null,null,null,null,null,null,null,null,null,null,null,""]
[null,null,null,null,null,null,null,null,null,null,null,null,null,""]
[null,null,null,null,null,null,null,null,null,null,null,null,null,""]
[null,null,null,null,null,null,null,null,null,null,null,null,null,""]
[null,null,null,null,null,null,null,null,null,null,null,null,null,""]
[null,null,null,null,null,null,null,null,null,null,null,null,null,""]
[null,null,null,null,null,null,null,null,null,null,null,null,null,""]
[null,null,null,null,null,null,null,null,null,null,null,null,null,""]
[null,null,null,null,null,null,null,null,null,null,null,null,null,""]
[null,null,null,null,null,null,null,null,null,null,null,null,null,""]
[null,null,null,null,null,null,null,null,null,null,null,null,null,""]
[null,null,null,null,null,null,null,null,null,null,null,null,null,""]
[null,null,null,null,null,null,null,null,null,null,null,null,null,""]
[null,null,null,null,null,null,null,null,null,null,null,null,null,""]
[null,null,null,null,null,null,null,null,null,null,null,null,null,""]
[null,null,null,null,null,null,null,null,null,null,null,null,null,""]
[null,null,null,null,null,null,null,null,null,null,null,null,null,""]
[null,null,null,null,null,null,null,null,null,null,null,null,null,""]
[null,null,null,null,null,null,null,null,null,null,null,null,null,""]
[null,null,null,null,null,null,null,null,null,null,null,null,null,""]
[null,null,null,null,null,null,null,null,null,null,null,null,null,""]
[null,null,null,null,null,null,null,null,null,null,null,null,null,""]
[null,null,null,null,null,null,null,null,null,null,null,null,null,""]
[null,null,null,null,null,null,null,null,null,null,null,null,null,""]
[null,null,null,null,null,null,null,null,null,null,null,null,null,""]
[null,null,null,null,null,null,null,null,null,null,null,null,null,""]
[null,null,null,null,null,null,null,null,null,null,null,null,null,""]
[null,null,null,null,null,null,null,null,null,null,null,null,null,""]
[null,null,null,null,null,null,null,null,null,null,null,null,null,""]
[null,null,null,null,null,null,null,null,null,null,null,null,null,""]
[null,null,null,null,null,null,null,null,null,null,null,null,null,""]
[null,null,null,null,null,null,null,null,null,null,null,null,null,""]
[null,null,null,null,null,null,null,null,null,null,null,null,null,""]
[null,null,null,null,null,null,null,null,null,null,null,null,null,""]
[null,null,null,null,null,null,null,null,null,null,null,null,null,""]
[null,null,null,null,null,null,null,null,null,null,null,null,null,""]
[null,null,null,null,null,null,null,null,null,null,null,null,null,""]
[null,null,null,null,null,null,null,null,null,null,null,null,null,{"$f":"IF(OR(L325=\"\",M325=\"\"),\"\",YEAR(L325)&M325)","v":""}]
[null,null,null,null,null,null,null,null,null,null,null,null,null,""]
[null,null,null,null,null,null,null,null,null,null,null,null,null,""]
[null,null,null,null,null,null,null,null,null,null,null,null,null,""]
[null,null,null,null,null,null,null,null,null,null,null,null,null,""]
[null,null,null,null,null,null,null,null,null,null,null,null,null,""]
[null,null,null,null,null,null,null,null,null,null,null,null,null,""]
[null,null,null,null,null,null,null,null,null,null,null,null,null,""]
[null,null,null,null,null,null,null,null,null,null,null,null,null,""]
[null,null,null,null,null,null,null,null,null,null,null,null,null,""]
[null,null,null,null,null,null,null,null,null,null,null,null,null,""]
[null,null,null,null,null,null,null,null,null,null,null,null,null,""]
[null,null,null,null,null,null,null,null,null,null,null,null,null,""]
[null,null,null,null,null,null,null,null,null,null,null,null,null,""]
[null,null,null,null,null,null,null,null,null,null,null,null,null,""]
[null,null,null,null,null,null,null,null,null,null,null,null,null,""]
[null,null,null,null,null,null,null,null,null,null,null,null,null,""]
[null,null,null,null,null,null,null,null,null,null,null,null,null,""]
[null,null,null,null,null,null,null,null,null,null,null,null,null,""]
[null,null,null,null,null,null,null,null,null,null,null,null,null,""]
[null,null,null,null,null,null,null,null,null,null,null,null,null,""]
[null,null,null,null,null,null,null,null,null,null,null,null,null,""]
[null,null,null,null,null,null,null,null,null,null,null,null,null,""]
[null,null,null,null,null,null,null,null,null,null,null,null,null,""]
[null,null,null,null,null,null,null,null,null,null,null,null,null,""]
[null,null,null,null,null,null,null,null,null,null,null,null,null,""]
[null,null,null,null,null,null,null,null,null,null,null,null,null,""]
[null,null,null,null,null,null,null,null,null,null,null,null,null,""]
[null,null,null,null,null,null,null,null,null,null,null,null,null,""]
[null,null,null,null,null,null,null,null,null,null,null,null,null,""]
[null,null,null,null,null,null,null,null,null,null,null,null,null,""]
[null,null,null,null,null,null,null,null,null,null,null,null,null,""]
[null,null,null,null,null,null,null,null,null,null,null,null,null,""]
[null,null,null,null,null,null,null,null,null,null,null,null,null,""]
[null,null,null,null,null,null,null,null,null,null,null,null,null,""]
[null,null,null,null,null,null,null,null,null,null,null,null,null,""]
[null,null,null,null,null,null,null,null,null,null,null,null,null,""]
[null,null,null,null,null,null,null,null,null,null,null,null,null,""]
[null,null,null,null,null,null,null,null,null,null,null,null,null,""]
[null,null,null,null,null,null,null,null,null,null,null,null,null,""]
[null,null,null,null,null,null,null,null,null,null,null,null,null,""]
[null,null,null,null,null,null,null,null,null,null,null,null,null,""]
[null,null,null,null,null,null,null,null,null,null,null,null,null,""]
[null,null,null,null,null,null,null,null,null,null,null,null,null,""]
[null,null,null,null,null,null,null,null,null,null,null,null,null,""]
[null,null,null,null,null,null,null,null,null,null,null,null,null,""]
[null,null,null,null,null,null,null,null,null,null,null,null,null,""]
[null,null,null,null,null,null,null,null,null,null,null,null,null,""]
[null,null,null,null,null,null,null,null,null,null,null,null,null,""]
[null,null,null,null,null,null,null,null,null,null,null,null,null,""]
[null,null,null,null,null,null,null,null,null,null,null,null,null,""]
[null,null,null,null,null,null,null,null,null,null,null,null,null,""]
[null,null,null,null,null,null,null,null,null,null,null,null,null,""]
[null,null,null,null,null,null,null,null,null,null,null,null,null,""]
[null,null,null,null,null,null,null,null,null,null,null,null,null,""]
[null,null,null,null,null,null,null,null,null,null,null,null,null,""]
[null,null,null,null,null,null,null,null,null,null,null,null,null,""]
[null,null,null,null,null,null,null,null,null,null,null,null,null,""]
[null,null,null,null,null,null,null,null,null,null,null,null,null,""]
[null,null,null,null,null,null,null,null,null,null,null,null,null,""]
[null,null,null,null,null,null,null,null,null,null,null,null,null,""]
[null,null,null,null,null,null,null,null,null,null,null,null,null,""]
[null,null,null,null,null,null,null,null,null,null,null,null,null,""]
[null,null,null,null,null,null,null,null,null,null,null,null,null,""]
[null,null,null,null,null,null,null,null,null,null,null,null,null,{"$f":"IF(OR(L389=\"\",M389=\"\"),\"\",YEAR(L389)&M389)","v":""}]
[null,null,null,null,null,null,null,null,null,null,null,null,null,""]
[null,null,null,null,null,null,null,null,null,null,null,null,null,""]
[null,null,null,null,null,null,null,null,null,null,null,null,null,""]
[null,null,null,null,null,null,null,null,null,null,null,null,null,""]
[null,null,null,null,null,null,null,null,null,null,null,null,null,""]
[null,null,null,null,null,null,null,null,null,null,null,null,null,""]
[null,null,null,null,null,null,null,null,null,null,null,null,null,""]
[null,null,null,null,null,null,null,null,null,null,null,null,null,""]
[null,null,null,null,null,null,null,null,null,null,null,null,null,""]
[null,null,null,null,null,null,null,null,null,null,null,null,null,""]
[null,null,null,null,null,null,null,null,null,null,null,null,null,""]
[null,null,null,null,null,null,null,null,null,null,null,null,null,""]
[null,null,null,null,null,null,null,null,null,null,null,null,null,""]
[null,null,null,null,null,null,null,null,null,null,null,null,null,""]
[null,null,null,null,null,null,null,null,null,null,null,null,null,""]
[null,null,null,null,null,null,null,null,null,null,null,null,null,""]
[null,null,null,null,null,null,null,null,null,null,null,null,null,""]
[null,null,null,null,null,null,null,null,null,null,null,null,null,""]
[null,null,null,null,null,null,null,null,null,null,null,null,null,""]
[null,null,null,null,null,null,null,null,null,null,null,null,null,""]
[null,null,null,null,null,null,null,null,null,null,null,null,null,""]
[null,null,null,null,null,null,null,null,null,null,null,null,null,""]
[null,null,null,null,null,null,null,null,null,null,null,null,null,""]
[null,null,null,null,null,null,null,null,null,null,null,null,null,""]
[null,null,null,null,null,null,null,null,null,null,null,null,null,""]
[null,null,null,null,null,null,null,null,null,null,null,null,null,""]
[null,null,null,null,null,null,null,null,null,null,null,null,null,""]
[null,null,null,null,null,null,null,null,null,null,null,null,null,""]
[null,null,null,null,null,null,null,null,null,null,null,null,null,""]
[null,null,null,null,null,null,null,null,null,null,null,null,null,""]
[null,null,null,null,null,null,null,null,null,null,null,null,null,""]
[null,null,null,null,null,null,null,null,null,null,null,null,null,""]
[null,null,null,null,null,null,null,null,null,null,null,null,null,""]
[null,null,null,null,null,null,null,null,null,null,null,null,null,""]
[null,null,null,null,null,null,null,null,null,null,null,null,null,""]
[null,null,null,null,null,null,null,null,null,null,null,null,null,""]
[null,null,null,null,null,null,null,null,null,null,null,null,null,""]
[null,null,null,null,null,null,null,null,null,null,null,null,null,""]
[null,null,null,null,null,null,null,null,null,null,null,null,null,""]
[null,null,null,null,null,null,null,null,null,null,null,null,null,""]
[null,null,null,null,null,null,null,null,null,null,null,null,null,""]
[null,null,null,null,null,null,null,null,null,null,null,null,null,""]
[null,null,null,null,null,null,null,null,null,null,null,null,null,""]
[null,null,null,null,null,null,null,null,null,null,null,null,null,""]
[null,null,null,null,null,null,null,null,null,null,null,null,null,""]
[null,null,null,null,null,null,null,null,null,null,null,null,null,""]
[null,null,null,null,null,null,null,null,null,null,null,null,null,""]
[null,null,null,null,null,null,null,null,null,null,null,null,null,""]
[null,null,null,null,null,null,null,null,null,null,null,null,null,""]
[null,null,null,null,null,null,null,null,null,null,null,null,null,""]
[null,null,null,null,null,null,null,null,null,null,null,null,null,""]
[null,null,null,null,null,null,null,null,null,null,null,null,null,""]
[null,null,null,null,null,null,null,null,null,null,null,null,null,""]
[null,null,null,null,null,null,null,null,null,null,null,null,null,""]
[null,null,null,null,null,null,null,null,null,null,null,null,null,""]
[null,null,null,null,null,null,null,null,null,null,null,null,null,""]
[null,null,null,null,null,null,null,null,null,null,null,null,null,""]
[null,null,null,null,null,null,null,null,null,null,null,null,null,""]
[null,null,null,null,null,null,null,null,null,null,null,null,null,""]
[null,null,null,null,null,null,null,null,null,null,null,null,null,""]
[null,null,null,null,null,null,null,null,null,null,null,null,null,""]
[null,null,null,null,null,null,null,null,null,null,null,null,null,""]
[null,null,null,null,null,null,null,null,null,null,null,null,null,""]
[null,null,null,null,null,null,null,null,null,null,null,null,null,{"$f":"IF(OR(L453=\"\",M453=\"\"),\"\",YEAR(L453)&M453)","v":""}]
[null,null,null,null,null,null,null,null,null,null,null,null,null,""]
[null,null,null,null,null,null,null,null,null,null,null,null,null,""]
[null,null,null,null,null,null,null,null,null,null,null,null,null,""]
[null,null,null,null,null,null,null,null,null,null,null,null,null,""]
[null,null,null,null,null,null,null,null,null,null,null,null,null,""]
[null,null,null,null,null,null,null,null,null,null,null,null,null,""]
[null,null,null,null,null,null,null,null,null,null,null,null,null,""]
[null,null,null,null,null,null,null,null,null,null,null,null,null,""]
[null,null,null,null,null,null,null,null,null,null,null,null,null,""]
[null,null,null,null,null,null,null,null,null,null,null,null,null,""]
[null,null,null,null,null,null,null,null,null,null,null,null,null,""]
[null,null,null,null,null,null,null,null,null,null,null,null,null,""]
[null,null,null,null,null,null,null,null,null,null,null,null,null,""]
[null,null,null,null,null,null,null,null,null,null,null,null,null,""]
[null,null,null,null,null,null,null,null,null,null,null,null,null,""]
[null,null,null,null,null,null,null,null,null,null,null,null,null,""]
[null,null,null,null,null,null,null,null,null,null,null,null,null,""]
[null,null,null,null,null,null,null,null,null,null,null,null,null,""]
[null,null,null,null,null,null,null,null,null,null,null,null,null,""]
[null,null,null,null,null,null,null,null,null,null,null,null,null,""]
[null,null,null,null,null,null,null,null,null,null,null,null,null,""]
[null,null,null,null,null,null,null,null,null,null,null,null,null,""]
[null,null,null,null,null,null,null,null,null,null,null,null,null,""]
[null,null,null,null,null,null,null,null,null,null,null,null,null,""]
[null,null,null,null,null,null,null,null,null,null,null,null,null,""]
[null,null,null,null,null,null,null,null,null,null,null,null,null,""]
[null,null,null,null,null,null,null,null,null,null,null,null,null,""]
[null,null,null,null,null,null,null,null,null,null,null,null,null,""]
[null,null,null,null,null,null,null,null,null,null,null,null,null,""]
[null,null,null,null,null,null,null,null,null,null,null,null,null,""]
[null,null,null,null,null,null,null,null,null,null,null,null,null,""]
[null,null,null,null,null,null,null,null,null,null,null,null,null,""]
[null,null,null,null,null,null,null,null,null,null,null,null,null,""]
[null,null,null,null,null,null,null,null,null,null,null,null,null,""]
[null,null,null,null,null,null,null,null,null,null,null,null,null,""]
[null,null,null,null,null,null,null,null,null,null,null,null,null,""]
[null,null,null,null,null,null,null,null,null,null,null,null,null,""]
[null,null,null,null,null,null,null,null,null,null,null,null,null,""]
[null,null,null,null,null,null,null,null,null,null,null,null,null,""]
[null,null,null,null,null,null,null,null,null,null,null,null,null,""]
[null,null,null,null,null,null,null,null,null,null,null,null,null,""]
[null,null,null,null,null,null,null,null,null,null,null,null,null,""]
[null,null,null,null,null,null,null,null,null,null,null,null,null,""]
[null,null,null,null,null,null,null,null,null,null,null,null,null,""]
[null,null,null,null,null,null,null,null,null,null,null,null,null,""]
[null,null,null,null,null,null,null,null,null,null,null,null,null,""]
[null,null,null,null,null,null,null,null,null,null,null,null,null,""]
[null,null,null,null,null,null,null,null,null,null,null,null,null,""]
[null,null,null,null,null,null,null,null,null,null,null,null,null,""]
[null,null,null,null,null,null,null,null,null,null,null,null,null,""]
[null,null,null,null,null,null,null,null,null,null,null,null,null,""]
[null,null,null,null,null,null,null,null,null,null,null,null,null,""]
[null,null,null,null,null,null,null,null,null,null,null,null,null,""]
[null,null,null,null,null,null,null,null,null,null,null,null,null,""]
[null,null,null,null,null,null,null,null,null,null,null,null,null,""]
[null,null,null,null,null,null,null,null,null,null,null,null,null,""]
[null,null,null,null,null,null,null,null,null,null,null,null,null,""]
[null,null,null,null,null,null,null,null,null,null,null,null,null,""]
[null,null,null,null,null,null,null,null,null,null,null,null,null,""]
[null,null,null,null,null,null,null,null,null,null,null,null,null,""]
[null,null,null,null,null,null,null,null,null,null,null,null,null,""]
[null,null,null,null,null,null,null,null,null,null,null,null,null,""]
[null,null,null,null,null,null,null,null,null,null,null,null,null,""]
[null,null,null,null,null,null,null,null,null,null,null,null,null,{"$f":"IF(OR(L517=\"\",M517=\"\"),\"\",YEAR(L517)&M517)","v":""}]
[null,null,null,null,null,null,null,null,null,null,null,null,null,""]
[null,null,null,null,null,null,null,null,null,null,null,null,null,""]
[null,null,null,null,null,null,null,null,null,null,null,null,null,""]
[null,null,null,null,null,null,null,null,null,null,null,null,null,""]
[null,null,null,null,null,null,null,null,null,null,null,null,null,""]
[null,null,null,null,null,null,null,null,null,null,null,null,null,""]
[null,null,null,null,null,null,null,null,null,null,null,null,null,""]
[null,null,null,null,null,null,null,null,null,null,null,null,null,""]
[null,null,null,null,null,null,null,null,null,null,null,null,null,""]
[null,null,null,null,null,null,null,null,null,null,null,null,null,""]
[null,null,null,null,null,null,null,null,null,null,null,null,null,""]
[null,null,null,null,null,null,null,null,null,null,null,null,null,""]
[null,null,null,null,null,null,null,null,null,null,null,null,null,""]
[null,null,null,null,null,null,null,null,null,null,null,null,null,""]
[null,null,null,null,null,null,null,null,null,null,null,null,null,""]
[null,null,null,null,null,null,null,null,null,null,null,null,null,""]
[null,null,null,null,null,null,null,null,null,null,null,null,null,""]
[null,null,null,null,null,null,null,null,null,null,null,null,null,""]
[null,null,null,null,null,null,null,null,null,null,null,null,null,""]
[null,null,null,null,null,null,null,null,null,null,null,null,null,""]
[null,null,null,null,null,null,null,null,null,null,null,null,null,""]
[null,null,null,null,null,null,null,null,null,null,null,null,null,""]
[null,null,null,null,null,null,null,null,null,null,null,null,null,""]
[null,null,null,null,null,null,null,null,null,null,null,null,null,""]
[null,null,null,null,null,null,null,null,null,null,null,null,null,""]
[null,null,null,null,null,null,null,null,null,null,null,null,null,""]
[null,null,null,null,null,null,null,null,null,null,null,null,null,""]
[null,null,null,null,null,null,null,null,null,null,null,null,null,""]
[null,null,null,null,null,null,null,null,null,null,null,null,null,""]
[null,null,null,null,null,null,null,null,null,null,null,null,null,""]
[null,null,null,null,null,null,null,null,null,null,null,null,null,""]
[null,null,null,null,null,null,null,null,null,null,null,null,null,""]
[null,null,null,null,null,null,null,null,null,null,null,null,null,""]
[null,null,null,null,null,null,null,null,null,null,null,null,null,""]
[null,null,null,null,null,null,null,null,null,null,null,null,null,""]
[null,null,null,null,null,null,null,null,null,null,null,null,null,""]
[null,null,null,null,null,null,null,null,null,null,null,null,null,""]
[null,null,null,null,null,null,null,null,null,null,null,null,null,""]

{"sheet":"Feuil2","index":1,"n_rows":107,"n_cols":1,"rows_kept":107,"cut":false,"hidden":true,"merged":[]}
["01"]
["02"]
["03"]
["04"]
["05"]
["06"]
["07"]
["08"]
["09"]
["10"]
["11"]
["12"]
["13"]
["14"]
["15"]
["16"]
["17"]
["18"]
["19"]
["2A"]
["2B"]
["21"]
["22"]
["23"]
["24"]
["25"]
["26"]
["27"]
["28"]
["29"]
["30"]
["31"]
["32"]
["33"]
["34"]
["35"]
["36"]
["37"]
["38"]
["39"]
["40"]
["41"]
["42"]
["43"]
["44"]
["45"]
["46"]
["47"]
["48"]
["49"]
["50"]
["51"]
["52"]
["53"]
["54"]
["55"]
["56"]
["57"]
["58"]
["59"]
["60"]
["61"]
["62"]
["63"]
["64"]
["65"]
["66"]
["67"]
["68"]
["69"]
["70"]
["71"]
["72"]
["73"]
["74"]
["75"]
["76"]
["77"]
["78"]
["79"]
["80"]
["81"]
["82"]
["83"]
["84"]
["85"]
["86"]
["87"]
["88"]
["89"]
["90"]
["91"]
["92"]
["93"]
["94"]
["95"]
["99"]
[971]
[972]
[973]
[974]
[975]
[976]
[977]
[986]
[987]
[988]

{"sheet":"Liste des collectivités","index":2,"n_rows":607,"n_cols":2,"rows_kept":607,"cut":false,"hidden":true,"merged":[]}
["SIRET"]
[26170001700013,"CENTRE COMMUNAL D'ACTION SOCIALE DE AIGREFEUILLE D'AUNIS"]
[26170024900012,"CENTRE COMMUNAL D'ACTION SOCIALE DE AULNAY DE SAINTONGE"]
[26170089200076,"CENTRE COMMUNAL D'ACTION SOCIALE DE AYTRE"]
[26170060300010,"CENTRE COMMUNAL D'ACTION SOCIALE DE CERCOUX"]
[26170003300010,"CENTRE COMMUNAL D'ACTION SOCIALE DE CHATELAILLON PLAGE"]
[26170090000051,"CENTRE COMMUNAL D'ACTION SOCIALE DE COZES"]
[26170205400014,"CENTRE COMMUNAL D'ACTION SOCIALE DE DOMPIERRE SUR MER"]
[26170215300014,"CENTRE COMMUNAL D'ACTION SOCIALE DE ESNANDES"]
[26170004100013,"CENTRE COMMUNAL D'ACTION SOCIALE DE FOURAS"]
[26170251800018,"CENTRE COMMUNAL D'ACTION SOCIALE DE LA JARNE"]
[26170045400018,"CENTRE COMMUNAL D'ACTION SOCIALE DE LA JARRIE"]
[26170023100010,"CENTRE COMMUNAL D'ACTION SOCIALE DE LA TREMBLADE"]
[26170256700015,"CENTRE COMMUNAL D'ACTION SOCIALE DE LAGORD"]
[26170049600019,"CENTRE COMMUNAL D'ACTION SOCIALE DE LES PORTES EN RE"]
[26170248400013,"CENTRE COMMUNAL D'ACTION SOCIALE DE L'HOUMEAU"]
[20008518100010,"CENTRE COMMUNAL D'ACTION SOCIALE de MARENNES"]
[26170067800012,"CENTRE COMMUNAL D'ACTION SOCIALE DE MONTLIEU LA GARDE"]
[26170304500011,"CENTRE COMMUNAL D'ACTION SOCIALE DE NERE"]
[26170312800015,"CENTRE COMMUNAL D'ACTION SOCIALE DE NIEUL SUR MER"]
[26170044700012,"CENTRE COMMUNAL D'ACTION SOCIALE DE PERIGNY"]
[26170050400010,"CENTRE COMMUNAL D'ACTION SOCIALE DE SAINT GEORGES DE DIDONNE"]
[26170013200010,"CENTRE COMMUNAL D'ACTION SOCIALE DE SAINT GEORGES D'OLERON"]
[20008519900012,"CENTRE COMMUNAL D'ACTION SOCIALE DE SAINT HILAIRE DE VILLEFRANCHE"]
[26170015700017,"CENTRE COMMUNAL D'ACTION SOCIALE DE SAINT JEAN DE LIVERSAY "]
[26170018100017,"CENTRE COMMUNAL D'ACTION SOCIALE DE SAINT SAVINIEN SUR CHARENTE"]
[26170439900011,"CENTRE COMMUNAL D'ACTION SOCIALE DE SAINT XANDRE"]
[26170443100079,"CENTRE COMMUNAL D'ACTION SOCIALE DE SAUJON"]
[26170017300014,"CENTRE COMMUNAL D'ACTION SOCIALE DE ST PIERRE D'OLERON"]
[26170021500013,"CENTRE COMMUNAL D'ACTION SOCIALE DE SURGERES"]
[26170022300066,"CENTRE COMMUNAL D'ACTION SOCIALE DE TONNAY CHARENTE"]
[20007470600025,"CENTRE INTERCOMMUNAL D'ACTION SOCIALE AUNIS ATLANTIQUE"]
[20004347900027,"CENTRE INTERCOMMUNAL D'ACTION SOCIALE AUNIS SUD"]
[26171184000015,"CENTRE INTERCOMMUNAL D'ACTION SOCIALE CHATEAU D'OLERON"]
[20002971800026,"CENTRE INTERCOMMUNAL D'ACTION SOCIALE COMMUNAUTÉ DE COMMUNES VALS DE SAINTONGE"]
[20002381000019,"CENTRE INTERCOMMUNAL D'ACTION SOCIALE DU BASSIN DE MARENNES"]
[24170064000048,"COMMUNAUTÉ D'AGGLOMÉRATION DE ROYAN ATLANTIQUE"]
[20004176200010,"COMMUNAUTÉ D'AGGLOMÉRATION ROCHEFORT OCEAN"]
[20003647300110,"COMMUNAUTÉ D'AGGLOMÉRATION SAINTES - GRANDES RIVES"]
[20004149900225,"COMMUNAUTÉ DE COMMUNES AUNIS ATLANTIQUE"]
[20004161400252,"COMMUNAUTÉ DE COMMUNES AUNIS SUD"]
[24170069900135,"COMMUNAUTÉ DE COMMUNES BASSIN DE MARENNES"]
[24170051700048,"COMMUNAUTÉ DE COMMUNES CHARENTE ARNOULT COEUR DE SAINTONGE SAINT PORCHAIRE"]
[24170063200110,"COMMUNAUTÉ DE COMMUNES DE GEMOZAC - SAINTONGE - VITICOLE"]
[20004152300016,"COMMUNAUTÉ DE COMMUNES DE LA HAUTE SAINTONGE"]
[24170045900043,"COMMUNAUTÉ DE COMMUNES DE L'ILE DE RE"]
[24170062400026,"COMMUNAUTÉ DE COMMUNES DE L'ILE D'OLERON"]
[20004168900015,"COMMUNAUTÉ DE COMMUNES DES VALS DE SAINTONGE"]
[21170002600019,"COMMUNE DE AGUDELLE"]
[21170003400013,"COMMUNE DE AIGREFEUILLE D'AUNIS"]
[21170005900010,"COMMUNE DE ALLAS BOCAGE"]
[21170006700013,"COMMUNE DE ALLAS CHAMPAGNE"]
[21170007500016,"COMMUNE DE ANAIS"]
[21170008300010,"COMMUNE DE ANDILLY"]
[21170009100013,"COMMUNE DE ANGLIERS"]
[21170010900013,"COMMUNE DE ANGOULINS SUR MER"]
[21170011700016,"COMMUNE DE ANNEPONT"]
[21170012500019,"COMMUNE DE ANNEZAY"]
[21170013300013,"COMMUNE DE ANTEZANT LA CHAPELLE"]
[21170015800010,"COMMUNE DE ARCES SUR GIRONDE"]
[21170016600013,"COMMUNE DE ARCHIAC"]
[21170017400017,"COMMUNE DE ARCHINGEAY"]
[21170018200010,"COMMUNE DE ARDILLIERES"]
[21170019000088,"COMMUNE DE ARS EN RE"]
[21170020800013,"COMMUNE DE ARTHENAC"]
[21170021600016,"COMMUNE DE ARVERT"]
[21170022400010,"COMMUNE DE ASNIERES LA GIRAUD"]
[21170023200013,"COMMUNE DE AUJAC"]
[21170024000016,"COMMUNE DE AULNAY DE SAINTONGE"]
[21170025700010,"COMMUNE DE AUMAGNE"]
[21170026500013,"COMMUNE DE AUTHON EBEON"]
[21170027300017,"COMMUNE DE AVY"]
[21170028100010,"COMMUNE DE AYTRE"]
[21170029900012,"COMMUNE DE BAGNIZEAU"]
[21170030700013,"COMMUNE DE BALANZAC"]
[21170031500016,"COMMUNE DE BALLANS"]
[21170032300010,"COMMUNE DE BALLON"]
[21170034900015,"COMMUNE DE BARZAN"]
[21170035600010,"COMMUNE DE BAZAUGES"]
[21170036400014,"COMMUNE DE BEAUGEAY"]
[21170037200017,"COMMUNE DE BEAUVAIS SUR MATHA"]
[21170038000010,"COMMUNE DE BEDENAC"]
[21170039800012,"COMMUNE DE BELLUIRE"]
[21170041400017,"COMMUNE DE BENON"]
[21170042200010,"COMMUNE DE BERCLOUX"]
[21170043000013,"COMMUNE DE BERNAY SAINT MARTIN"]
[21170044800015,"COMMUNE DE BERNEUIL"]
[21170045500010,"COMMUNE DE BEURLAY"]
[21170046300014,"COMMUNE DE BIGNAY"]
[21170047100017,"COMMUNE DE BIRON"]
[21170048900019,"COMMUNE DE BLANZAC LES MATHA"]
[21170049700012,"COMMUNE DE BLANZAY SUR BOUTONNE"]
[21170050500012,"COMMUNE DE BOIS"]
[21170052100019,"COMMUNE DE BOISREDON"]
[21170053900011,"COMMUNE DE BORDS"]
[21170054700014,"COMMUNE DE BORESSE ET MARTRON"]
[21170055400010,"COMMUNE DE BOSCAMNANT"]
[21170056200013,"COMMUNE DE BOUGNEAU"]
[21170057000016,"COMMUNE DE BOUHET"]
[21170058800018,"COMMUNE DE BOURCEFRANC LE CHAPUS"]
[21170059600045,"COMMUNE DE BOURGNEUF"]
[21170060400013,"COMMUNE DE BOUTENAC TOUVENT"]
[21170061200016,"COMMUNE DE BRAN"]
[21170062000019,"COMMUNE DE BRESDON"]
[21170063800011,"COMMUNE DE BREUIL LA REORTE"]
[21170065300010,"COMMUNE DE BREUIL MAGNE"]
[21170064600014,"COMMUNE DE BREUILLET"]
[21170066100013,"COMMUNE DE BRIE SOUS ARCHIAC"]
[21170067900015,"COMMUNE DE BRIE SOUS MATHA"]
[21170068700018,"COMMUNE DE BRIE SOUS MORTAGNE"]
[21170069500011,"COMMUNE DE BRIVES SUR CHARENTE"]
[21170070300013,"COMMUNE DE BRIZAMBOURG"]
[21170072900018,"COMMUNE DE BURIE"]
[21170074500014,"COMMUNE DE BUSSAC FORET"]
[21170073700011,"COMMUNE DE BUSSAC SUR CHARENTE"]
[21170075200010,"COMMUNE DE CABARIOT"]
[21170076000013,"COMMUNE DE CELLES"]
[21170077800015,"COMMUNE DE CERCOUX"]
[21170078600018,"COMMUNE DE CHADENAC"]
[21170079400012,"COMMUNE DE CHAILLEVETTE"]
[21170080200013,"COMMUNE DE CHAMBON"]
[21170081000016,"COMMUNE DE CHAMOUILLAC"]
[21170082800018,"COMMUNE DE CHAMPAGNAC"]
[21170083600011,"COMMUNE DE CHAMPAGNE"]
[21170084400015,"COMMUNE DE CHAMPAGNOLLES"]
[21170085100036,"COMMUNE DE CHAMPDOLENT"]
[21170086900012,"COMMUNE DE CHANIERS"]
[21170087700015,"COMMUNE DE CHANTEMERLE SUR LA SOIE"]
[21170091900015,"COMMUNE DE CHARRON"]
[21170092700018,"COMMUNE DE CHARTUZAC"]
[21170094300015,"COMMUNE DE CHATELAILLON PLAGE"]
[21170095000010,"COMMUNE DE CHATENET"]
[21170096800012,"COMMUNE DE CHAUNAC"]
[21170098400019,"COMMUNE DE CHENAC SAINT SEURIN D'UZET"]
[21170099200012,"COMMUNE DE CHEPNIERS"]
[21170100800016,"COMMUNE DE CHERAC"]
[21170101600019,"COMMUNE DE CHERBONNIERES"]
[21170102400013,"COMMUNE DE CHERMIGNAC"]
[21170104000019,"COMMUNE DE CHEVANCEAUX"]
[21170105700013,"COMMUNE DE CHIVES"]
[21170106500016,"COMMUNE DE CIERZAC"]
[21170107300010,"COMMUNE DE CIRE D'AUNIS"]
[21170108100013,"COMMUNE DE CLAM"]
[21170109900015,"COMMUNE DE CLAVETTE"]
[21170110700016,"COMMUNE DE CLERAC"]
[21170111500019,"COMMUNE DE CLION SUR SEUGNE"]
[21170114900018,"COMMUNE DE COIVERT"]
[21170115600013,"COMMUNE DE COLOMBIERS"]
[21170116400017,"COMMUNE DE CONSAC"]
[21170117200010,"COMMUNE DE CONTRE"]
[21170118000013,"COMMUNE DE CORIGNAC"]
[21170119800015,"COMMUNE DE CORME ECLUSE"]
[21170120600016,"COMMUNE DE CORME ROYAL"]
[21170122200013,"COMMUNE DE COULONGES"]
[21170124800018,"COMMUNE DE COURANT"]
[21170125500013,"COMMUNE DE COURCELLES"]
[21170126300017,"COMMUNE DE COURCERAC"]
[21170127100010,"COMMUNE DE COURCON D'AUNIS"]
[21170128900012,"COMMUNE DE COURCOURY"]
[21170129700015,"COMMUNE DE COURPIGNAC"]
[21170130500016,"COMMUNE DE COUX"]
[21170131300010,"COMMUNE DE COZES"]
[21170132100013,"COMMUNE DE CRAMCHABAN"]
[21170133900015,"COMMUNE DE CRAVANS"]
[21170134700018,"COMMUNE DE CRAZANNES"]
[21170135400014,"COMMUNE DE CRESSE"]
[21170136200017,"COMMUNE DE CROIX CHAPEAU"]
[21170138800012,"COMMUNE DE DAMPIERRE SUR BOUTONNE"]
[21170139600056,"COMMUNE DE DOEUIL SUR LE MIGNON"]
[21170140400017,"COMMUNE DE DOLUS D'OLERON"]
[21170141200010,"COMMUNE DE DOMPIERRE SUR CHARENTE"]
[21170142000112,"COMMUNE DE DOMPIERRE SUR MER"]
[21170145300030,"COMMUNE DE ECHEBRUNE"]
[21170146100017,"COMMUNE DE ECHILLAIS"]
[21170147900019,"COMMUNE DE ECOYEUX"]
[21170148700012,"COMMUNE DE ECURAT"]
[21170152900011,"COMMUNE DE EPARGNES"]
[21170153700014,"COMMUNE DE ESNANDES"]
[20005534100016,"COMMUNE DE ESSOUVERT"]
[21170155200013,"COMMUNE DE ETAULES"]
[21170157800018,"COMMUNE DE FENIOUX"]
[21170158600011,"COMMUNE DE FERRIERES D'AUNIS"]
[21170159400015,"COMMUNE DE FLEAC SUR SEUGNE"]
[20007692500011,"COMMUNE DE FLOIRAC"]
[21170162800011,"COMMUNE DE FONTAINE CHALENDRAY"]
[21170163600014,"COMMUNE DE FONTAINES D'OZILLAC"]
[21170164400018,"COMMUNE DE FONTCOUVERTE"]
[21170165100013,"COMMUNE DE FONTENET"]
[21170166900015,"COMMUNE DE FORGES"]
[21170168500011,"COMMUNE DE FOURAS"]
[21170171900018,"COMMUNE DE GEAY"]
[21170172700011,"COMMUNE DE GEMOZAC"]
[21170174300067,"COMMUNE DE GENOUILLE"]
[21170175000013,"COMMUNE DE GERMIGNAC"]
[21170176800015,"COMMUNE DE GIBOURNE"]
[21170178400012,"COMMUNE DE GIVREZAC"]
[21170180000016,"COMMUNE DE GOURVILLETTE"]
[21170181800018,"COMMUNE DE GRANDJEAN"]
[21170183400015,"COMMUNE DE GREZAC"]
[21170187500018,"COMMUNE DE GUITINIERES"]
[21170188300012,"COMMUNE DE HAIMPS"]
[21170004200016,"COMMUNE DE ILE D'AIX"]
[21170192500011,"COMMUNE DE JARNAC CHAMPAGNE"]
[21170196600056,"COMMUNE DE JAZENNES"]
[21170197400019,"COMMUNE DE JONZAC"]
[21170198200012,"COMMUNE DE JUICQ"]
[21170199000015,"COMMUNE DE JUSSAS"]
[21170033100013,"COMMUNE DE LA BARDE"]
[21170486100015,"COMMUNE DE LA BREE LES BAINS"]
[21170071100016,"COMMUNE DE LA BROUSSE"]
[21170089300012,"COMMUNE DE LA CHAPELLE DES POTS"]
[21170112300013,"COMMUNE DE LA CLISSE"]
[21170113100016,"COMMUNE DE LA CLOTTE"]
[21170121400010,"COMMUNE DE LA COUARDE SUR MER"]
[21170137000010,"COMMUNE DE LA CROIX COMTESSE"]
[20007658600011,"COMMUNE DE LA DEVISE"]
[21170161000019,"COMMUNE DE LA FLOTTE EN RE"]
[21170173500014,"COMMUNE DE LA GENETOUZE"]
[21170182600011,"COMMUNE DE LA GREVE SUR LE MIGNON"]
[21170184200018,"COMMUNE DE LA GRIPPERIE SAINT SYMPHORIEN"]
[21170191700018,"COMMUNE DE LA JARD"]
[21170193300015,"COMMUNE DE LA JARNE"]
[21170194100018,"COMMUNE DE LA JARRIE"]
[21170195800012,"COMMUNE DE LA JARRIE AUDOUIN"]
[21170201400047,"COMMUNE DE LA LAIGNE"]
[21170303800060,"COMMUNE DE LA RONDE"]
[21170452300011,"COMMUNE DE LA TREMBLADE"]
[21170455600011,"COMMUNE DE LA VALLEE"]
[21170465500011,"COMMUNE DE LA VERGNE"]
[21170471300018,"COMMUNE DE LA VILLEDIEU"]
[21170200600019,"COMMUNE DE LAGORD"]
[21170202200016,"COMMUNE DE LANDES"]
[21170203000019,"COMMUNE DE LANDRAIS"]
[21170051300016,"COMMUNE DE LE BOIS PLAGE EN RE"]
[21170093500011,"COMMUNE DE LE CHATEAU D'OLERON"]
[21170097600015,"COMMUNE DE LE CHAY"]
[21170143800015,"COMMUNE DE LE DOUHET"]
[21170167700018,"COMMUNE DE LE FOUILLOUX"]
[21170177600018,"COMMUNE DE LE GICQ"]
[21170485300012,"COMMUNE DE LE GRAND VILLAGE PLAGE"]
[21170185900012,"COMMUNE DE LE GUA"]
[21170186700015,"COMMUNE DE LE GUE D'ALLERE"]
[21170252700014,"COMMUNE DE LE MUNG"]
[21170276600018,"COMMUNE DE LE PIN"]
[21170426700015,"COMMUNE DE LE SEURE"]
[21170447300019,"COMMUNE DE LE THOU"]
[21170151100019,"COMMUNE DE L'EGUILLE"]
[21170204800011,"COMMUNE DE LEOVILLE"]
[21170149500015,"COMMUNE DE LES EDUTS"]
[21170150300016,"COMMUNE DE LES EGLISES D'ARGENTEUIL"]
[21170154500017,"COMMUNE DE LES ESSARDS"]
[21170179200015,"COMMUNE DE LES GONDS"]
[21170225300017,"COMMUNE DE LES MATHES"]
[21170266700018,"COMMUNE DE LES NOUILLERS"]
[21170286500018,"COMMUNE DE LES PORTES EN RE"]
[21170451500017,"COMMUNE DE LES TOUCHES DE PERIGNY"]
[21170190900015,"COMMUNE DE L'HOUMEAU"]
[21170205500016,"COMMUNE DE LOIRE LES MARAIS"]
[21170206300010,"COMMUNE DE LOIRE SUR NIE"]
[21170207100013,"COMMUNE DE LOIX"]
[21170208900015,"COMMUNE DE LONGEVES"]
[21170209700018,"COMMUNE DE LONZAC"]
[21170210500019,"COMMUNE DE LORIGNAC"]
[21170211300013,"COMMUNE DE LOULAY"]
[21170212100016,"COMMUNE DE LOUZIGNAC"]
[21170213900059,"COMMUNE DE LOZAY"]
[21170214700011,"COMMUNE DE LUCHAT"]
[21170215400017,"COMMUNE DE LUSSAC"]
[21170216200010,"COMMUNE DE LUSSANT"]
[21170217000013,"COMMUNE DE MACQUEVILLE"]
[21170218800015,"COMMUNE DE MARANS"]
[20008513200013,"COMMUNE DE MARENNES - HIERS BROUAGE"]
[21170220400010,"COMMUNE DE MARIGNAC"]
[21170221200013,"COMMUNE DE MARSAIS"]
[21170222000016,"COMMUNE DE MARSILLY"]
[21170223800018,"COMMUNE DE MASSAC"]
[21170224600011,"COMMUNE DE MATHA"]
[21170226100010,"COMMUNE DE MAZERAY"]
[21170227900012,"COMMUNE DE MAZEROLLES"]
[21170228700015,"COMMUNE DE MEDIS"]
[21170229500018,"COMMUNE DE MERIGNAC"]
[21170230300010,"COMMUNE DE MESCHERS SUR GIRONDE"]
[21170231100013,"COMMUNE DE MESSAC"]
[21170232900015,"COMMUNE DE MEURSAC"]
[21170233700018,"COMMUNE DE MEUX"]
[21170234500011,"COMMUNE DE MIGRE"]
[21170235200017,"COMMUNE DE MIGRON"]
[21170236000010,"COMMUNE DE MIRAMBEAU"]
[21170237800012,"COMMUNE DE MOEZE"]
[21170239400019,"COMMUNE DE MONS"]
[21170240200010,"COMMUNE DE MONTENDRE"]
[21170241000013,"COMMUNE DE MONTGUYON"]
[21170242800015,"COMMUNE DE MONTILS"]
[21170243600018,"COMMUNE DE MONTLIEU LA GARDE"]
[21170244400012,"COMMUNE DE MONTPELLIER DE MEDILLAN"]
[21170245100017,"COMMUNE DE MONTROY"]
[21170246900019,"COMMUNE DE MORAGNE"]
[21170247700012,"COMMUNE DE MORNAC SUR SEUDRE"]
[21170248500015,"COMMUNE DE MORTAGNE SUR GIRONDE"]
[21170249300019,"COMMUNE DE MORTIERS"]
[21170250100019,"COMMUNE DE MOSNAC"]
[21170253500017,"COMMUNE DE MURON"]
[21170254300011,"COMMUNE DE NACHAMPS"]
[21170255000016,"COMMUNE DE NANCRAS"]
[21170256800018,"COMMUNE DE NANTILLE"]
[21170257600011,"COMMUNE DE NERE"]
[21170258400015,"COMMUNE DE NEUILLAC"]
[21170259200018,"COMMUNE DE NEULLES"]
[21170260000019,"COMMUNE DE NEUVICQ"]
[21170261800011,"COMMUNE DE NEUVICQ LE CHATEAU"]
[21170263400018,"COMMUNE DE NIEUL LE VIROUIL"]
[21170262600014,"COMMUNE DE NIEUL LES SAINTES"]
[21170264200011,"COMMUNE DE NIEUL SUR MER"]
[21170265900015,"COMMUNE DE NIEULLE SUR SEUDRE"]
[21170267500011,"COMMUNE DE NUAILLE D'AUNIS"]
[21170269100018,"COMMUNE DE ORIGNOLLES"]
[21170270900018,"COMMUNE DE OZILLAC"]
[21170271700011,"COMMUNE DE PAILLE"]
[21170273300018,"COMMUNE DE PERIGNAC"]
[21170274100011,"COMMUNE DE PERIGNY"]
[21170275800015,"COMMUNE DE PESSINES"]
[21170278200072,"COMMUNE DE PISANY"]
[21170279000018,"COMMUNE DE PLASSAC"]
[21170280800059,"COMMUNE DE PLASSAY"]
[21170281600011,"COMMUNE DE POLIGNAC"]
[21170282400015,"COMMUNE DE POMMIERS MOULONS"]
[21170283200018,"COMMUNE DE PONS"]
[21170284000011,"COMMUNE DE PONT L'ABBE D'ARNOULT"]
[21170285700015,"COMMUNE DE PORT D'ENVAUX"]
[21170484600016,"COMMUNE DE PORT DES BARQUES"]
[21170287300012,"COMMUNE DE POUILLAC"]
[21170288100015,"COMMUNE DE POURSAY GARNAUD"]
[21170289900017,"COMMUNE DE PREGUILLAC"]
[21170290700018,"COMMUNE DE PRIGNAC"]
[21170291500011,"COMMUNE DE PUILBOREAU"]
[21170292300015,"COMMUNE DE PUY DU LAC"]
[21170293100018,"COMMUNE DE PUYRAVAULT"]
[21170294900010,"COMMUNE DE PUYROLLAND"]
[20005304900017,"COMMUNE DE REAUX SUR TREFLE"]
[21170296400019,"COMMUNE DE RETAUD"]
[21170298000015,"COMMUNE DE RIOUX"]
[21170297200012,"COMMUNE DE RIVEDOUX PLAGE"]
[93411547800018,"COMMUNE DE RIVES DE BOUTONNE"]
[21170301200016,"COMMUNE DE ROMAZIERES"]
[21170302000019,"COMMUNE DE ROMEGOUX"]
[21170304600014,"COMMUNE DE ROUFFIAC"]
[21170305300010,"COMMUNE DE ROUFFIGNAC"]
[21170307900098,"COMMUNE DE SABLONCEAUX"]
[21170308700018,"COMMUNE DE SAINT AGNANT"]
[21170309500011,"COMMUNE DE SAINT AIGULIN"]
[21170310300013,"COMMUNE DE SAINT ANDRE DE LIDON"]
[21170311100016,"COMMUNE DE SAINT AUGUSTIN SUR MER"]
[21170312900018,"COMMUNE DE SAINT BONNET SUR GIRONDE"]
[21170313700011,"COMMUNE DE SAINT BRIS DES BOIS"]
[21170314500014,"COMMUNE DE SAINT CESAIRE"]
[21170315200010,"COMMUNE DE SAINT CHRISTOPHE"]
[21170316000013,"COMMUNE DE SAINT CIERS CHAMPAGNE"]
[21170317800015,"COMMUNE DE SAINT CIERS DU TAILLON"]
[21170318600018,"COMMUNE DE SAINT CLEMENT DES BALEINES"]
[21170320200013,"COMMUNE DE SAINT COUTANT LE GRAND"]
[21170321000016,"COMMUNE DE SAINT CREPIN"]
[21170322800018,"COMMUNE DE SAINT CYR DU DORET"]
[21170323600011,"COMMUNE DE SAINT DENIS D'OLERON"]
[21170324400015,"COMMUNE DE SAINT DIZANT DU BOIS"]
[21170325100010,"COMMUNE DE SAINT DIZANT DU GUA"]
[21170326900012,"COMMUNE DE SAINT EUGENE"]
[21170327700015,"COMMUNE DE SAINT FELIX"]
[21170328500018,"COMMUNE DE SAINT FORT SUR GIRONDE"]
[21170329300012,"COMMUNE DE SAINT FROULT"]
[21170331900015,"COMMUNE DE SAINT GENIS DE SAINTONGE"]
[21170332700042,"COMMUNE DE SAINT GEORGES ANTIGNAC"]
[21170333500011,"COMMUNE DE SAINT GEORGES DE DIDONNE"]
[21170335000010,"COMMUNE DE SAINT GEORGES DES AGOUTS"]
[21170336800012,"COMMUNE DE SAINT GEORGES DES COTEAUX"]
[21170337600015,"COMMUNE DE SAINT GEORGES D'OLERON"]
[21170338400019,"COMMUNE DE SAINT GEORGES DU BOIS"]
[21170339200012,"COMMUNE DE SAINT GERMAIN DE LUSIGNAN"]
[21170341800015,"COMMUNE DE SAINT GERMAIN DE VIBRAC"]
[21170342600018,"COMMUNE DE SAINT GERMAIN DU SEUDRE"]
[21170343400012,"COMMUNE DE SAINT GREGOIRE D'ARDENNES"]
[20008507400017,"COMMUNE DE SAINT HILAIRE DE VILLEFRANCHE"]
[21170345900019,"COMMUNE DE SAINT HILAIRE DU BOIS"]
[21170346700012,"COMMUNE DE SAINT HIPPOLYTE"]
[21170347500015,"COMMUNE DE SAINT JEAN D'ANGELY"]
[21170348300019,"COMMUNE DE SAINT JEAN D'ANGLE"]
[21170349100012,"COMMUNE DE SAINT JEAN DE LIVERSAY"]
[21170350900011,"COMMUNE DE SAINT JULIEN DE L'ESCAP"]
[21170351700014,"COMMUNE DE SAINT JUST LUZAC"]
[21170353300011,"COMMUNE DE SAINT LAURENT DE LA PREE"]
[21170354100014,"COMMUNE DE SAINT LEGER"]
[21170356600011,"COMMUNE DE SAINT LOUP DE SAINTONGE"]
[21170357400015,"COMMUNE DE SAINT MAIGRIN"]
[21170358200018,"COMMUNE DE SAINT MANDE SUR BREDOIRE"]
[21170359000011,"COMMUNE DE SAINT MARD"]
[21170361600014,"COMMUNE DE SAINT MARTIAL DE LOULAY"]
[21170362400018,"COMMUNE DE SAINT MARTIAL DE MIRAMBEAU"]
[21170363200011,"COMMUNE DE SAINT MARTIAL DE VITATERNE"]
[21170364000014,"COMMUNE DE SAINT MARTIAL SUR NE"]
[21170365700018,"COMMUNE DE SAINT MARTIN D'ARY"]
[21170366500011,"COMMUNE DE SAINT MARTIN DE COUX"]
[21170367300015,"COMMUNE DE SAINT MARTIN DE JUILLERS"]
[21170369900010,"COMMUNE DE SAINT MARTIN DE RE"]
[21170372300018,"COMMUNE DE SAINT MEDARD"]
[21170373100011,"COMMUNE DE SAINT MEDARD D'AUNIS"]
[21170375600018,"COMMUNE DE SAINT NAZAIRE SUR CHARENTE"]
[21170376400012,"COMMUNE DE SAINT OUEN D'AUNIS"]
[21170377200015,"COMMUNE DE SAINT OUEN LA THENE"]
[21170378000018,"COMMUNE DE SAINT PALAIS DE NEGRIGNAC"]
[21170379800010,"COMMUNE DE SAINT PALAIS DE PHIOLIN"]
[21170380600011,"COMMUNE DE SAINT PALAIS SUR MER"]
[21170381400015,"COMMUNE DE SAINT PARDOULT"]
[21170382200018,"COMMUNE DE SAINT PIERRE D'AMILLY"]
[21170383000011,"COMMUNE DE SAINT PIERRE DE JUILLERS"]
[21170384800013,"COMMUNE DE SAINT PIERRE DE L'ISLE"]
[21170385500018,"COMMUNE DE SAINT PIERRE D'OLERON"]
[21170386300012,"COMMUNE DE SAINT PIERRE DU PALAIS"]
[20008009100016,"COMMUNE DE SAINT PIERRE LA NOUE"]
[21170387100015,"COMMUNE DE SAINT PORCHAIRE"]
[21170388900017,"COMMUNE DE SAINT QUANTIN DE RANCANNES"]
[21170391300015,"COMMUNE DE SAINT ROGATIEN"]
[21170393900010,"COMMUNE DE SAINT ROMAIN DE BENET"]
[21170394700013,"COMMUNE DE SAINT SATURNIN DU BOIS"]
[21170395400019,"COMMUNE DE SAINT SAUVANT"]
[21170396200012,"COMMUNE DE SAINT SAUVEUR D'AUNIS"]
[21170397000015,"COMMUNE DE SAINT SAVINIEN SUR CHARENTE"]
[21170398800017,"COMMUNE DE SAINT SEURIN DE PALENNE"]
[21170400200016,"COMMUNE DE SAINT SEVER DE SAINTONGE"]
[21170401000019,"COMMUNE DE SAINT SEVERIN SUR BOUTONNE"]
[21170402800011,"COMMUNE DE SAINT SIGISMOND DE CLERMONT"]
[21170403600030,"COMMUNE DE SAINT SIMON DE BORDES"]
[21170404400018,"COMMUNE DE SAINT SIMON DE PELLOUAILLE"]
[21170405100013,"COMMUNE DE SAINT SORLIN DE CONAC"]
[21170406900015,"COMMUNE DE SAINT SORNIN"]
[21170408500011,"COMMUNE DE SAINT SULPICE D'ARNOULT"]
[21170409300015,"COMMUNE DE SAINT SULPICE DE ROYAN"]
[21170410100016,"COMMUNE DE SAINT THOMAS DE CONAC"]
[21170411900018,"COMMUNE DE SAINT TROJAN LES BAINS"]
[21170412700011,"COMMUNE DE SAINT VAIZE"]
[21170413500014,"COMMUNE DE SAINT VIVIEN"]
[21170414300018,"COMMUNE DE SAINT XANDRE"]
[21170319400012,"COMMUNE DE SAINTE COLOMBE"]
[21170330100013,"COMMUNE DE SAINTE GEMME"]
[21170355800018,"COMMUNE DE SAINTE LHEURINE"]
[21170360800011,"COMMUNE DE SAINTE MARIE DE RE"]
[21170374900013,"COMMUNE DE SAINTE MEME"]
[21170389700010,"COMMUNE DE SAINTE RADEGONDE"]
[21170390500011,"COMMUNE DE SAINTE RAMEE"]
[21170407700018,"COMMUNE DE SAINTE SOULLE"]
[21170416800015,"COMMUNE DE SALEIGNES"]
[21170417600018,"COMMUNE DE SALIGNAC DE MIRAMBEAU"]
[21170418400012,"COMMUNE DE SALIGNAC SUR CHARENTE"]
[21170420000016,"COMMUNE DE SALLES SUR MER"]
[21170421800018,"COMMUNE DE SAUJON"]
[21170422600011,"COMMUNE DE SEIGNE"]
[21170423400015,"COMMUNE DE SEMILLAC"]
[21170424200042,"COMMUNE DE SEMOUSSAC"]
[21170425900012,"COMMUNE DE SEMUSSAC"]
[21170427500018,"COMMUNE DE SIECQ"]
[21170428300012,"COMMUNE DE SONNAC"]
[21170429100015,"COMMUNE DE SOUBISE"]
[21170430900015,"COMMUNE DE SOUBRAN"]
[21170431700018,"COMMUNE DE SOULIGNONNE"]
[21170432500011,"COMMUNE DE SOUMERAS"]
[21170433300015,"COMMUNE DE SOUSMOULINS"]
[21170434100018,"COMMUNE DE SURGERES"]
[21170435800012,"COMMUNE DE TAILLANT"]
[21170436600015,"COMMUNE DE TAILLEBOURG"]
[21170437400019,"COMMUNE DE TALMONT SUR GIRONDE"]
[21170438200012,"COMMUNE DE TANZAC"]
[21170439000015,"COMMUNE DE TAUGON"]
[21170440800015,"COMMUNE DE TERNANT"]
[21170441600018,"COMMUNE DE TESSON"]
[21170442400012,"COMMUNE DE THAIMS"]
[21170443200015,"COMMUNE DE THAIRE D'AUNIS"]
[21170444000018,"COMMUNE DE THENAC"]
[21170445700012,"COMMUNE DE THEZAC"]
[21170446500015,"COMMUNE DE THORS"]
[21170448100012,"COMMUNE DE TONNAY BOUTONNE"]
[21170449900014,"COMMUNE DE TONNAY CHARENTE"]
[21170450700014,"COMMUNE DE TORXE"]
[21170453100014,"COMMUNE DE TRIZAY"]
[21170454900032,"COMMUNE DE TUGERAS SAINT MAURICE"]
[21170458000011,"COMMUNE DE VANZAC"]
[21170459800013,"COMMUNE DE VARAIZE"]
[21170460600014,"COMMUNE DE VARZAY"]
[21170461400018,"COMMUNE DE VAUX SUR MER"]
[21170462200011,"COMMUNE DE VENERAND"]
[21170463000014,"COMMUNE DE VERGEROUX"]
[21170464800016,"COMMUNE DE VERGNE"]
[21170466300015,"COMMUNE DE VERINES"]
[21170467100018,"COMMUNE DE VERVANT"]
[21170468900010,"COMMUNE DE VIBRAC"]
[21170469700013,"COMMUNE DE VILLARS EN PONS"]
[21170470500014,"COMMUNE DE VILLARS LES BOIS"]
[21170472100011,"COMMUNE DE VILLEDOUX"]
[21170473900013,"COMMUNE DE VILLEMORIN"]
[21170474700016,"COMMUNE DE VILLENEUVE LA COMTESSE"]
[21170476200015,"COMMUNE DE VILLEXAVIER"]
[21170477000018,"COMMUNE DE VILLIERS COUTURE"]
[21170478800010,"COMMUNE DE VINAX"]
[21170479600013,"COMMUNE DE VIROLLET"]
[21170480400015,"COMMUNE DE VIRSON"]
[21170481200018,"COMMUNE DE VOISSAY"]
[21170482000011,"COMMUNE DE VOUHE"]
[21170483800013,"COMMUNE DE YVES"]
[21170156000016,"COMMUNE D'EXPIREMONT"]
[27170003100021,"OPDHLM HABITAT 17"]
[27170001500024,"OPH ROCHEFORT HABITAT OCEAN"]
[27170002300010,"OPHLM CDA DE LA ROCHELLE"]
[27170004900015,"OPHLM de la Ville de Saintes"]
[20005033400024,"PÔLE D'ÉQUILIBRE TERRITORIAL ET RURAL PAYS MARENNES OLERON"]
[20004585400011,"SYNDICAT CUISINE ROCHEFORT OCEAN"]
[25170096900016,"SYNDICAT CYLINDRAGE DE MONTLIEU LA GARDE - MONTGUYON"]
[25170219700012,"SYNDICAT DÉPARTEMENT D'ÉLECTRIFICATION ET ÉQUIPEMENT RURAL DE LA CHARENTE-MARITIME"]
[25170182700015,"SYNDICAT DEPARTEMENTAL DE LA VOIRIE"]
[25170098500012,"SYNDICAT DES COMMUNES DU CANTON DE MONTGUYON"]
[25170181900012,"SYNDICAT EAU 17"]
[25170229600061,"SYNDICAT INTERCANTONAL PERSONNES AGÉES ET RETRAITÉES DE BURIE - MATHA"]
[24170004600022,"SYNDICAT INTERCOMMUNAL À VOCATION MULTIPLE DE BIRON - ECHEBRUNE"]
[20004448500015,"SYNDICAT INTERCOMMUNAL À VOCATION MULTIPLE DE LA PLAINE D'AUNIS"]
[24177306800010,"SYNDICAT INTERCOMMUNAL À VOCATION MULTIPLE DE LA PRESQU'ILE DE ARVERT"]
[24170035000010,"SYNDICAT INTERCOMMUNAL À VOCATION MULTIPLE DE MIGRON - VILLARS LES BOIS - LE SEURE"]
[24170021000016,"SYNDICAT INTERCOMMUNAL À VOCATION MULTIPLE DE SAINT BRIS DES BOIS - SAINT CESAIRE"]
[24177303500035,"SYNDICAT INTERCOMMUNAL À VOCATION MULTIPLE DE SAINT MATHIEU DE JAZENNES"]
[24170002000019,"SYNDICAT INTERCOMMUNAL À VOCATION MULTIPLE DU CANTON DE ARCHIAC"]
[24170015200010,"SYNDICAT INTERCOMMUNAL À VOCATION MULTIPLE DU CANTON DE MONTLIEU LA GARDE"]
[24170011100024,"SYNDICAT INTERCOMMUNAL À VOCATION MULTIPLE DU TREFLE ET MEDOC DE MARIGNAC"]
[25171034900027,"SYNDICAT INTERCOMMUNAL À VOCATION MULTIPLE ENFANCE JEUNESSE DE L'ESTUAIRE"]
[25170188400016,"SYNDICAT INTERCOMMUNAL À VOCATION SCOLAIRE BOISREDON SOUBRAN ALLAS-BOCAGE"]
[25170024100010,"SYNDICAT INTERCOMMUNAL À VOCATION SCOLAIRE DE ALLAS CHAMPAGNE - ARTHENAC - BRIE SOUS ARCHIAC"]
[25171049700024,"SYNDICAT INTERCOMMUNAL À VOCATION SCOLAIRE DE ARCES SUR GIRONDE - BARZAN - CHENAC SEURIN D'UZET"]
[25170274200015,"SYNDICAT INTERCOMMUNAL À VOCATION SCOLAIRE DE ARCHINGEAY - LES NOUILLERS"]
[25171010900025,"SYNDICAT INTERCOMMUNAL À VOCATION SCOLAIRE DE AUJAC - AUMAGNE - AUTHON EBEON"]
[20000797900012,"SYNDICAT INTERCOMMUNAL À VOCATION SCOLAIRE DE BALLON - CIRE D'AUNIS"]
[25170092800012,"SYNDICAT INTERCOMMUNAL À VOCATION SCOLAIRE DE BEAUGEAY - MOEZE - SAINT FROULT"]
[25171014100010,"SYNDICAT INTERCOMMUNAL À VOCATION SCOLAIRE DE BEDENAC - CHEPNIERS"]
[25171024000010,"SYNDICAT INTERCOMMUNAL À VOCATION SCOLAIRE DE BIGNAY - FENIOUX - GRANDJEAN - MAZERAY"]
[25170025800014,"SYNDICAT INTERCOMMUNAL À VOCATION SCOLAIRE DE CELLES - LONZAC - JARNAC CHAMPAGNE"]
[25170061300010,"SYNDICAT INTERCOMMUNAL À VOCATION SCOLAIRE DE CIERZAC - SAINT MARTIAL SUR NE - GERMIGNAC"]
[25170145400018,"SYNDICAT INTERCOMMUNAL À VOCATION SCOLAIRE DE CLION SUR SEUGNE - MOSNAC - SAINT GEORGES ANTIGNAC"]
[25170027400011,"SYNDICAT INTERCOMMUNAL À VOCATION SCOLAIRE DE COURPIGNAC - CHAMOUILLAC - ROUFFIGNAC"]
[25170054800034,"SYNDICAT INTERCOMMUNAL À VOCATION SCOLAIRE DE CRAMCHABAN - LA GREVE SUR MIGNON - LA LAIGNE"]
[25170267600015,"SYNDICAT INTERCOMMUNAL À VOCATION SCOLAIRE DE FONTAINES D'OZILLAC"]
[25170481300012,"SYNDICAT INTERCOMMUNAL À VOCATION SCOLAIRE DE GEAY - ROMEGOUX - LA VALLEE"]
[25170256900012,"SYNDICAT INTERCOMMUNAL À VOCATION SCOLAIRE DE GENOUILLE - SAINT CREPIN"]
[25171001800010,"SYNDICAT INTERCOMMUNAL À VOCATION SCOLAIRE DE HAIMPS - SONNAC"]
[25171065300014,"SYNDICAT INTERCOMMUNAL À VOCATION SCOLAIRE DE LA CLOTTE - SAINT MARTIN DE COUX"]
[25170291600023,"SYNDICAT INTERCOMMUNAL À VOCATION SCOLAIRE DE L'ARNAISE"]
[20001325800013,"SYNDICAT INTERCOMMUNAL À VOCATION SCOLAIRE DE LE THOU - LANDRAIS"]
[25170458100015,"SYNDICAT INTERCOMMUNAL À VOCATION SCOLAIRE DE LEOVILLE"]
[25170277500015,"SYNDICAT INTERCOMMUNAL À VOCATION SCOLAIRE DE LES ESSARDS - PLASSAY - SAINT SULPICE D'ARNOULT"]
[25170250200013,"SYNDICAT INTERCOMMUNAL À VOCATION SCOLAIRE DE LORIGNAC - SAINT DIZANT DU GUA - SAINT FORT SUR GIRONDE"]
[25170124900012,"SYNDICAT INTERCOMMUNAL À VOCATION SCOLAIRE DE MEUX-REAUX SUR TREFLE"]
[25170472200015,"SYNDICAT INTERCOMMUNAL À VOCATION SCOLAIRE DE MONS - PRIGNAC - COURCERAC - THORS"]
[25170455700015,"SYNDICAT INTERCOMMUNAL À VOCATION SCOLAIRE DE NIEUL LE VIROUIL"]
[25170480500018,"SYNDICAT INTERCOMMUNAL À VOCATION SCOLAIRE DE PORT D'ENVAUX - CRAZANNES"]
[25170479700017,"SYNDICAT INTERCOMMUNAL À VOCATION SCOLAIRE DE POUILLAC - SAINT PALAIS DE NEGRIGNAC - SAINTE COLOMBE"]
[25170193400019,"SYNDICAT INTERCOMMUNAL À VOCATION SCOLAIRE DE RIOUX - TESSON"]
[25170136300011,"SYNDICAT INTERCOMMUNAL À VOCATION SCOLAIRE DE SAINT CIERS CHAMPAGNE - SAINT GERMAIN DE VIBRAC"]
[25170341900019,"SYNDICAT INTERCOMMUNAL À VOCATION SCOLAIRE DE SAINT CLEMENT DES BALEINES - LES PORTES EN RE"]
[25171069500015,"SYNDICAT INTERCOMMUNAL À VOCATION SCOLAIRE DE SAINT CYR DU DORET - LA RONDE"]
[25171053900015,"SYNDICAT INTERCOMMUNAL À VOCATION SCOLAIRE DE SAINT DENIS D'OLERON - LA BREE LES BAINS"]
[25170353400023,"SYNDICAT INTERCOMMUNAL À VOCATION SCOLAIRE DE SAINT SIMON DE PELLOUAILLE - CRAVANS"]
[25170106600010,"SYNDICAT INTERCOMMUNAL À VOCATION SCOLAIRE DE SAINTE LHEURINE - NEUILLAC - NEULLES"]
[25170044900027,"SYNDICAT INTERCOMMUNAL À VOCATION SCOLAIRE DE ST CIERS DU TAILLON-ST THOMAS"]
[20001586500013,"SYNDICAT INTERCOMMUNAL À VOCATION SCOLAIRE DE TONNAY BOUTONNE"]
[25170276700012,"SYNDICAT INTERCOMMUNAL À VOCATION SCOLAIRE DE VARAIZE - LA BROUSSE"]
[20009934900017,"SYNDICAT INTERCOMMUNAL À VOCATION SCOLAIRE DES COMMUNES DE ST SATURNIN DU BOIS ET DE ST PIERRE D'AMILLY"]
[25170084500018,"SYNDICAT INTERCOMMUNAL À VOCATION SCOLAIRE DES TROIS FONTAINES"]
[25170262700018,"SYNDICAT INTERCOMMUNAL À VOCATION SCOLAIRE FRANCOIS RABELAIS"]
[25170146200011,"SYNDICAT INTERCOMMUNAL À VOCATION SCOLAIRE JAURES MAGNIER"]
[25170469800017,"SYNDICAT INTERCOMMUNAL À VOCATION SCOLAIRE SEUDRE SAINTONGE"]
[25170053000016,"SYNDICAT INTERCOMMUNAL À VOCATION UNIQUE CEG DE COZES"]
[25170170200010,"SYNDICAT INTERCOMMUNAL À VOCATION UNIQUE CEG ST PORCHAIRE"]
[25170015900014,"SYNDICAT INTERCOMMUNAL À VOCATION UNIQUE DE BARZAN PORT DES MONARDS"]
[25171022400014,"SYNDICAT INTERCOMMUNAL À VOCATION UNIQUE DE BRIZAMBOURG - BERCLOUX - ECOYEUX"]
[20001194800029,"SYNDICAT INTERCOMMUNAL À VOCATION UNIQUE DE CRAMCHABAN - LA GREVE LA LAIGNE -"]
[25170486200019,"SYNDICAT INTERCOMMUNAL À VOCATION UNIQUE DE GENOUILLE"]
[25170247800016,"SYNDICAT INTERCOMMUNAL À VOCATION UNIQUE DE MONTPELLIER DE MEDILLAN - SAINT ANDRE DE LIDON"]
[25171061200010,"SYNDICAT INTERCOMMUNAL A VOCATION UNIQUE DU BOIS D'ESSOUVERT"]
[20004962500011,"SYNDICAT INTERCOMMUNAL À VOCATION UNIQUE Enfance Jeunesse de Soubise"]
[25171026500017,"SYNDICAT INTERCOMMUNAL À VOCATION UNIQUE ENTRETIEN PORTS ET CHENAUX DE MORTAGNE SUR GIRONDE"]
[20002482600022,"SYNDICAT INTERCOMMUNAL À VOCATION UNIQUE FERRIERES-LE GUE D'ALLERE-NUAILLE D'AUNIS ET ST SAUVEUR D'AUNIS DU CIPV"]
[20004721500013,"SYNDICAT INTERCOMMUNAL À VOCATION UNIQUE LES PTITS LOUPS ST FORT SUR GIRONDE"]
[25170002700013,"SYNDICAT INTERCOMMUNAL D'ASSAINISSEMENT DE LA REGION D'AIGREFEUILLE"]
[25170167800020,"SYNDICAT INTERCOMMUNAL DE FONCTIONNEMENT ET D'INVESTISSEMENT DU COLLÈGE ET DES EQUIPEMENTS SPORTIFS DE SAINT PIERRE D'OLERON"]
[25170213000013,"SYNDICAT INTERCOMMUNAL DE MARENNES - BOURCEFRANC LE CHAPUS"]
[24170013700060,"SYNDICAT INTERCOMMUNAL DU CANTON DE MIRAMBEAU"]
[25170168600015,"SYNDICAT INTERCOMMUNAL FONCTIONNEMENT CENTRE MEDICO SOCIAL DE SAINT PIERRE D'OLERON"]
[25170475500015,"SYNDICAT INTERCOMMUNAL SECRETARIAT DE COUX - EXPIREMONT"]
[25171068700020,"SYNDICAT INTERCOMMUNAUTAIRE DU LITTORAL"]
[20009414200029,"SYNDICAT INTERCOMMUNAUTAIRE DU LITTORAL ESNANDES CHARRON"]
[20008130500019,"SYNDICAT INTER-COMMUNAUTAIRE DU LITTORAL YVES-CHATELAILLON-AIX-FOURAS"]
[25170190000036,"SYNDICAT MIXTE CYCLAD"]
[20008603100016,"SYNDICAT MIXTE DE LA CHARENTE AVAL"]
[20009066000016,"SYNDICAT MIXTE DES BASSINS DE LA SEUDRE"]
[20007708900015,"SYNDICAT MIXTE DES PORTS DE L'ESTUAIRE DE LA SEUDRE"]
[20008024000027,"SYNDICAT MIXTE DES RIVIERES ET MARAIS D'AUNIS"]
[20009170000019,"SYNDICAT MIXTE DU BASSIN DE LA SEUGNE"]
[25171056200041,"SYNDICAT MIXTE DU PAYS SAINTONGE ROMANE"]
[20007369000014,"SYNDICAT MIXTE DU PORT DE COMMERCE DE ROCHEFORT/TONNAY CHARENTE"]
[20007709700026,"SYNDICAT MIXTE PORTUAIRE ESTUAIRE ROYAN OCEAN LA PALMYRE"]
[25171031500028,"SYNDICAT MIXTE POUR LA GESTION DES BASSINS DE L'ANTENNE DE LA SOLOIRE DU ROMEDE DU CORAN ET DU BOURRU (SYMBA)"]
[25170459900025,"SYNDICAT MIXTE POUR LA RESTAURATION ET L'ANIMATION DU SITE DE BROUAGE"]
[20009777200012,"SYNDICAT MIXTE POUR L'AMENAGEMENT DES DIGUES DE LA GIRONDE (SYMADIG)"]
[20006366700014,"SYNDICAT MIXTE POUR LE SCOT LA ROCHELLE AUNIS"]
[25170232000051,"SYNDICAT MIXTE SOLUTIONS NUMERIQUES TERRITORIALES INNOVANTES (SOLURIS)"]